Cogmind - Beta 13 X2 @@@ ROGUE MODE // 2024.01.11 @ 14:32:35 Player: Minty Result: Destroyed by G-34 Mercenary with Small Laser Performance ------------- Evolutions (1) 500 Regions Visited (3) 600 Robots Destroyed (6) 30 Value Destroyed (181) 181 Prototype IDs (2) 40 Alien Tech Used (0) 0 Bonus (0) 0 TOTAL SCORE: 1351 Bonus ------- None Cogmind --------- Core Integrity 0/400 Matter 145/300 Energy 15/100 System Corruption 10% Temperature Cool (6) Movement Core (150) Ox2 Location -9/Materials Parts ------- > --- POWER (1) -------- (None) > --- PROPULSION (2) --- (None) > --- UTILITY (3) ------ Small Storage Unit > --- WEAPON (3) ------- EMP Blaster > --- INVENTORY (8) ---- Ion Engine Cooling System Seismic Detector Hardened Light Armor Plating Mining Laser Peak State ------------ > --- POWER ------------ Ion Engine > --- PROPULSION ------- Wheel Compact Wheel > --- UTILITY ---------- Small Storage Unit Targeting Computer Hardened Light Armor Plating > --- WEAPON ----------- Medium Laser Small Laser Light Assault Rifle > --- INVENTORY -------- Ion Engine Seismic Detector Mining Laser Heavy Explosive Trap Heavy Explosive Trap Heavy Explosive Trap Heavy Explosive Trap [Rating: 10] Favorites ----------- Power Ion Engine Engine Ion Engine Propulsion Wheel Leg Aluminum Leg Wheel Wheel Utility Small Storage Unit Device Seismic Detector Storage Small Storage Unit Processor Targeting Computer Protection Hardened Light Armor Plating Weapon Medium Laser Energy Gun Medium Laser Ballistic Gun Light Assault Rifle Launcher EMP Blaster Build | -11 -10 -10 -9 ------- Run | Yrd Mat Min Mat Slots Evolved 2 | . . . 2 Power . | . . . . Propulsion . | . . . . Utility 1 | . . . 1 Weapon 1 | . . . 1 Parts Attached 11 | . 1 4 6 Power 1 | . . . 1 Engine 1 | . . . 1 Core . | . . . . Reactor . | . . . . Propulsion 2 | . . 2 . Treads . | . . . . Leg . | . . . . Wheel 2 | . . 2 . Hover . | . . . . Flight . | . . . . Utility 3 | . . 1 2 Device 1 | . . 1 . Storage . | . . . . Processor 1 | . . . 1 Hackware . | . . . . Protection 1 | . . . 1 Artifact . | . . . . Weapon 5 | . 1 1 3 Energy Gun 3 | . 1 1 1 Energy Cannon . | . . . . Ballistic Gun 1 | . . . 1 Ballistic Cannon . | . . . . Launcher 1 | . . . 1 Special Weapon . | . . . . Impact Weapon . | . . . . Slashing Weapon . | . . . . Piercing Weapon . | . . . . Special Melee Weapon . | . . . . Unidentified Prototypes . | . . . . Parts Lost 7 | . 2 . 5 Power . | . . . . Propulsion 3 | . 1 . 2 Utility 1 | . . . 1 Weapon 3 | . 1 . 2 Highest Loss Streak 4 | . 2 . 4 To Critical Strikes . | . . . . Average Slot Usage (%) 75 | . 84 76 68 Engine 11 | . 14 14 7 Leg 7 | . 28 1 . Wheel 14 | . . 25 14 Device 1 | . . 3 . Storage 12 | . 14 14 11 Processor 2 | . . . 7 Protection 2 | . . . 6 Energy Gun 18 | . 27 17 13 Ballistic Gun 2 | . . . 6 Naked Turns . | . . . . Heaviest Build 19 | 13 14 14 19 Greatest Support 26 | 20 20 26 26 Greatest Overweight (x) 4 | . 1 1 4 Average Overweight (x) . | . . . . Largest Inventory Capacity 8 | . 8 8 8 Average Capacity 8 | . 8 8 8 Most Carried 8 | . 8 8 8 Average Carried 7 | . 6 7 7 Final Capacity 8 | 8 8 8 8 Final Carried 8 | 6 8 8 5 Class Distribution -------------------- 81% | Mutant 18% | Gunner Dominant Class ---------------- Mutant | -10/Materials Mutant | -10/Mines Mutant | -9/Materials Resources | -11 -10 -10 -9 ----------- Run | Yrd Mat Min Mat Matter Collected 213 | 200 . 13 . Remotely . | . . . . Salvage Created 264 | . 64 . 200 Parts 12 | . 3 . 9 Haulers Intercepted . | . . . . Recyclers Shooed 1 | . . . 1 Parts Field Recycled . | . . . . Retrieved Matter . | . . . . Parts Self-Destructed . | . . . . Prevented . | . . . . Kills | -11 -10 -10 -9 ------- Run | Yrd Mat Min Mat Combat Hostiles Destroyed 4 | . . . 4 Guns 3 | . . . 3 AOE 1 | . . . 1 Classes Destroyed 5 | . 1 . 4 Recycler 1 | . 1 . . Operator 1 | . . . 1 Grunt 2 | . . . 2 Brawler 1 | . . . 1 Sentry 1 | . . . 1 Best Kill Streak 3 | . 1 . 3 Combat Bots Only 3 | . . . 3 Max Kills in Single Turn 1 | . 1 . 1 Gunslinging . | . . . . Exploded 1 | . . . 1 Melee . | . . . . Uniques/NPCs Destroyed . | . . . . Combat | -11 -10 -10 -9 -------- Run | Yrd Mat Min Mat Hostile Shots Fired 124 | . 38 . 86 Missed 41 | . 14 . 27 Damage Taken 1229 | . 276 14 939 Core 445 | . 31 10 404 Absorbed by Shields . | . . . . Core Remaining (%) 91 | 100 . 83 . Volleys Fired 22 | . 5 . 17 Largest 3 | . 2 . 3 Hottest 110 | . 90 . 110 Shots Fired 56 | . 10 . 46 Gun 54 | . 10 . 44 Cannon . | . . . . Launcher 2 | . . . 2 Special . | . . . . Kinetic 15 | . . . 15 Thermal 33 | . 5 . 28 Explosive . | . . . . Electromagnetic 8 | . 5 . 3 Robot Hit Streak 10 | . 4 . 10 Robot Miss Streak 3 | . 2 . 3 Penetration Max . | . . . . Secondary Targets 1 | . . . 1 Max Gunslinging Chain 1 | . . . 1 Shots Hit Robots 41 | . 7 . 34 Core Hits 16 | . 4 1 11 Critical Kills . | . . . . Critical Parts Destroyed . | . . . . Critical Strikes 2 | . 1 . 1 Burn 2 | . 1 . 1 Melee Attacks . | . . . . Impact . | . . . . Slashing . | . . . . Piercing . | . . . . Sneak Attacks . | . . . . Combat Hostiles . | . . . . Follow-up Attacks . | . . . . Damage Inflicted 591 | . 117 10 464 Guns 436 | . 91 . 345 Cannons . | . . . . Explosions 116 | . 26 . 90 Melee . | . . . . Ramming 39 | . . 10 29 Kinetic 77 | . . . 77 Thermal 331 | . 63 . 268 Explosive . | . . . . Electromagnetic 144 | . 54 . 90 Impact . | . . . . Slashing . | . . . . Piercing . | . . . . Highest Corruption 10 | . . . 10 Average Corruption 9 | . . . 9 Corruption Purged . | . . . . Corruption Blocked . | . . . . Effects 5 | . . . 5 Message Errors 2 | . . . 2 Matter Fused 1 | . . . 1 Heat Flow Errors 1 | . . . 1 Misdirections 1 | . . . 1 Overload Shots . | . . . . Overflow Damage . | . . . . Projectiles . | . . . . Explosions . | . . . . Melee . | . . . . Knockbacks . | . . . . Impact . | . . . . Kinetic . | . . . . Secondary . | . . . . Self-Inflicted Damage 36 | . . 4 32 Shots 2 | . . . 2 Rammed 10 | . . 2 8 Targets Rammed 11 | . . 3 8 Kicked 1 | . . 1 . Crushed . | . . . . Highest Temperature 680 | . 192 . 680 Average Temperature 270 | . 93 . 322 Received Heat Transfer 414 | . 111 . 303 Effects 15 | . . . 15 Shutdowns 1 | . . . 1 Energy Bleed 2 | . . . 2 Matter Decay 2 | . . . 2 Short Circuit 4 | . . . 4 Damage (minor) 1 | . . . 1 Damage (major) 3 | . . . 3 Damage (core) 2 | . . . 2 Siege Activations . | . . . . Robots Corrupted . | . . . . Combat Hostiles . | . . . . Parts Fried . | . . . . Impact Corruptions . | . . . . Robots Melted . | . . . . Combat Hostiles . | . . . . Parts Melted 2 | . . . 2 Heat Transferred 1004 | . 235 . 769 Parts Sabotaged . | . . . . Parts Stolen . | . . . . Parts Stripped . | . . . . Power Chain Reactions 1 | . 1 . . Missiles Intercepted . | . . . . Alert | -11 -10 -10 -9 ------- Run | Yrd Mat Min Mat Peak Influence 160 | . 53 18 160 Initial 18 | . . 18 6 Average 44 | . 16 18 87 Maximum Alert Level . | . . . . Low Security (%) 100 | . 100 100 100 Level 1 . | . . . . Level 2 . | . . . . Level 3 . | . . . . Level 4 . | . . . . Level 5 . | . . . . High Security . | . . . . Max Security . | . . . . Squads Dispatched . | . . . . Investigation . | . . . . Extermination . | . . . . Reinforcement . | . . . . Assault . | . . . . Garrison . | . . . . Intercept . | . . . . Searches Triggered . | . . . . Construction Impeded . | . . . . Haulers Reinforced . | . . . . Active Scanning Responses . | . . . . Cargo Convoy Interrupts . | . . . . Stealth | -11 -10 -10 -9 --------- Run | Yrd Mat Min Mat Distress Signals 1 | . . . 1 Communications Jammed . | . . . . Distress Signals . | . . . . Times Spotted 20 | . 8 . 12 Peak Tracking Total 6 | . 6 . 5 Tactical Retreats 3 | . 3 . . Traps | -11 -10 -10 -9 ------- Run | Yrd Mat Min Mat Traps Triggered . | . . . . Indirectly . | . . . . Trap Hack Attempts . | . . . . Triggered . | . . . . Disarmed . | . . . . Reprogrammed . | . . . . Reused 2 | . . . 2 Traps Extracted . | . . . . Installed 4 | . . . 4 Triggered 2 | . . . 2 Most Traps Carried 4 | . . 4 4 Machines | -11 -10 -10 -9 ---------- Run | Yrd Mat Min Mat Machines Disabled 1 | . . . 1 Max in Single Turn 1 | . . . 1 Machines Repaired . | . . . . Machines Dismantled . | . . . . Machines Sabotaged . | . . . . Overloaded Fab Kills . | . . . . Hacking | -11 -10 -10 -9 --------- Run | Yrd Mat Min Mat Machines Accessed 4 | . 2 . 2 Terminals 4 | . 2 . 2 Fabricators . | . . . . Repair Stations . | . . . . Recycling Units . | . . . . Scanalyzers . | . . . . Garrison Access . | . . . . Total Hacks 12 | . 6 . 6 Successful 6 | . 2 . 4 Failed 6 | . 4 . 2 Catastrophic . | . . . . Database Lockouts . | . . . . Manual 4 | . . . 4 Terminals 12 | . 6 . 6 Fabricators . | . . . . Repair Stations . | . . . . Recycling Units . | . . . . Scanalyzers . | . . . . Garrison Access . | . . . . Terminal Hacks 5 | . 2 . 3 Prototype ID Bank 1 | . 1 . . Alert Level 2 | . 1 . 1 Locate Traps 1 | . . . 1 Hauler Manifests 1 | . . . 1 Fabricator Hacks . | . . . . Repair Station Hacks . | . . . . Recycling Unit Hacks . | . . . . Scanalyzer . | . . . . Garrison Access Hacks . | . . . . Unauthorized Hacks 1 | . . . 1 Terminals 1 | . . . 1 Botnet 1 | . . . 1 Fabricators . | . . . . Repair Stations . | . . . . Recycling Units . | . . . . Scanalyzers . | . . . . Garrison Access . | . . . . Data Cores Recovered 1 | . . . 1 Used 1 | . . . 1 Hacking Detections 4 | . 2 . 2 Full Trace Events 3 | . 2 . 1 Feedback Events . | . . . . Feedback Blocked . | . . . . Robot Schematics Acquired . | . . . . Robots Built . | . . . . Authchips . | . . . . Time . | . . . . Total Robot Build Rating . | . . . . Part Schematics Acquired . | . . . . Parts Built . | . . . . Authchips . | . . . . Time . | . . . . Total Part Build Rating . | . . . . Parts Repaired . | . . . . Time . | . . . . Parts Recycled . | . . . . Recycled Matter . | . . . . Retrieved Matter . | . . . . Retrieved Components . | . . . . Parts Scanalyzed . | . . . . Part Schematics Acquired . | . . . . Parts Damaged . | . . . . Bothacking | -11 -10 -10 -9 ------------ Run | Yrd Mat Min Mat Used RIF Installer . | . . . . Robots Hacked . | . . . . Non-combat . | . . . . Combat . | . . . . Robot Hacks Applied . | . . . . Relay Couplers Released . | . . . . Fabnet Peak Effective % . | . . . . Robots Rewired . | . . . . Allies Hacked . | . . . . Hacks Repelled . | . . . . Allies | -11 -10 -10 -9 -------- Run | Yrd Mat Min Mat Total Allies . | . . . . Largest Group . | . . . . Highest-Rated Group . | . . . . Highest-Rated Ally . | . . . . Total Orders . | . . . . Ally Attacks . | . . . . Total Damage . | . . . . Kills . | . . . . Allies Corrupted . | . . . . Allies Melted . | . . . . Intel | -11 -10 -10 -9 ------- Run | Yrd Mat Min Mat Robot Analysis Total . | . . . . Derelict Logs Recovered 1 | . . 1 . Drone Launches . | . . . . Drone Recoveries . | . . . . Exploration | -11 -10 -10 -9 ------------- Run | Yrd Mat Min Mat Turns Passed 603 | . 154 217 232 Spaces Moved 454 | 1 102 215 136 Core 55 | . . . 55 Treads . | . . . . Legs 111 | 1 102 8 . Wheels 288 | . . 207 81 Hover . | . . . . Flight . | . . . . Fastest Speed 90 | 120 120 90 90 Average Speed 105 | 120 121 93 111 Slowest Speed 250 | 120 190 190 250 Overloaded Moves . | . . . . Propulsion Burnouts . | . . . . Robots Hopped . | . . . . Cave-ins Triggered . | . . . . Exploration Rate (%) 28 | 2 23 64 25 Regions Visited 3 Branch Regions 1 Pre-discovered Areas . | . . . . Known Exits Taken 1 | . . 1 . Unknown Exits Taken 2 | 1 1 . . Scrap Searched 1 | . . 1 . Spaces Dug . | . . . . Terrain Destroyed 3 | . 3 . . Melee . | . . . . Projectile . | . . . . AOE 3 | . 3 . . Terrain Rammed . | . . . . Walls Destroyed . | . . . . Machines Disabled . | . . . . Actions | -11 -10 -10 -9 --------- Run | Yrd Mat Min Mat Total 539 | . 123 229 187 Wait 16 | . 13 . 3 Move 451 | . 101 214 136 Hop . | . . . . Pick Up 8 | . 2 5 1 Fast Attach 4 | . . 1 3 Attach 5 | . 1 2 2 Detach 5 | . 1 . 4 Swap 2 | . . 1 1 Drop 10 | . . 3 7 Fire 22 | . 5 . 17 Melee . | . . . . Ram 11 | . . 2 9 Kick 1 | . . 1 . Crush . | . . . . Escape Stasis . | . . . . Rewire . | . . . . Trap 4 | . . . 4 Miscellaneous . | . . . . Route ------- -11/Scrapyard -10/Materials -10/Mines -9/Materials History --------- Turn | Location | Event 1 | -11/Scrapyard | Discovered new exit (range 0) 1 | -11/Scrapyard | Entered Materials 129 | -10/Materials | Discovered new exit (range 15) 155 | -10/Materials | Entered Mines 216 | -10/Mines | Identified exit to Materials 289 | -10/Mines | Found a hidden stash of uninstalled traps 314 | -10/Mines | Build established: Mutant 372 | -10/Mines | Entered Materials 372 | -9/Materials | Evolved 2 slots: Utility x1, Weapon x1 525 | -9/Materials | System corruption reached 10% 527 | -9/Materials | Core integrity fell below 50% 555 | -9/Materials | Lost 4 parts (2n1u1w) 555 | -9/Materials | Core integrity fell below 20% 604 | -9/Materials | Destroyed by G-34 Mercenary with Small Laser Last Messages --------------- 00524_ System corrupted by crushing effect (+5). 00524_ Slammed into B-36 Bruiser. 00524_ Destabilizing: System corrupted (+2). 00526_ Slammed into G-34 Mercenary. 00526_ Destabilizing: Core damaged (-20). 00527_ Slammed into G-34 Mercenary. 00538_ MQ =:G0EIQ PRBWUFV,GDX9 00539_ Dropped Heavy Explosive Trap. 00540_ Installed Heavy Explosive Trap. 00553_ System corrupted: Heat flow error (+235). 00564_ Acquired EM Shotgun. 00577_ Dropped Heavy Explosive Trap. 00578_ System corrupted: Matter fused (-8). 00578_ Installed Heavy Explosive Trap. 00582_ Acquired EMP Blaster. 00597_ U48MSLLBGA#%/ JT|P:S 00597_ Processing Tank disabled. 00600_ EM Shotgun destroyed. 00603_ Dropped Heavy Explosive Trap. 00604_ Installed Heavy Explosive Trap. Map ----- +----------------------------------------------------+ | ???????????????????????????# + # | | ???????????????????????????# # """ # | | ????????????????????###+##?# # """ # | | ????????????????????# ## # """ # | | ????????????###???### # ? | | ???????????? # # | | ???????????? ### ######### | | ????????????? ???# ### ##???????? | | ??????????????# ??######??# #????????? | | ??????????????# ###########/####?????? | | ??????????????? # #?????? | | ???????????????? #[[ #?????? | | ?????????????????? #[[ ! #?????? | | ???????????????????# #[[ #?????? | | ???????????????????# # """ #?????? | | ???????????????????# + """ #?????? | | ???????????????????# # """ #?????? | | ???????????????????# + #?????? | | ????????????????#####g############?????? | | ????????????????+ ^ #????????????? | | ????????????????# Y "" #????????????? | | ????????????????# g #????????????? | | ????????????????# #????????????? | | ????????????????#" #????????????? | | ????????????????#T b #????????????? | | ????????????????#" g @#????????????? | | ????????????????# #????????????? | | ????????????????###########????????????? | | ???????????????????????????????????????? | | ???????????????????????????????????????? | | ???????????????????????????????????????? | | ???????????????????????????????????????? | | ???????????????????????????????????????? | | ???????????????????????????????????????? | | ???????????????????????????????????????? | | ???????????????????????????????????????? | | ???????????????????????????????????????? | | ???????????????????????????????????????? | | ???????????????????????????????????????? | | ???????????????????????????????????????? | | ???????????????????????????????????????? | | ???????????????????????????????????????? | | ???????????????????????????????????????? | | ???????????????????????????????????????? | | ???????????????????????????????????????? | | ???????????????????????????????????????? | | ???????????????????????????????????????? | | ???????????????????????????????????????? | | ???????????????????????????????????????? | | ???????????????????????????????????????? | +----------------------------------------------------+ Best States ------------- Heat Dissipation 28 Energy Generation 10 Energy Capacity 250 Matter Stores 300 Matter Capacity 300 Sight Range 16 Terrain Scan Density 10 Armor Coverage 150 Evasion (%) 55 Targeting Accuracy 5 Item Schematics ----------------- None Robot Schematics ------------------ None Fabricated ------------ Nothing Alien Tech Used ----------------- None Achievements -------------- None Challenges ------------ None Game ------ Seed TimingDiametricModule Manual? 0 Play Time 00:07:03 Cumulative 583.1 hours Start 2024.01.11 @ 14:27:29 End 2024.01.11 @ 14:32:35 Sessions 1 Manual Loads 0 Difficulty Rogue Special Mode None Game No. 498 Rogue 225 Adventurer 123 Explorer 150 Win Type - Total 25 Types 19/0/4/1/0/0/0/1/0 Lore% 78 Gallery% 90 Achievement% 75 Wizard Run 0 Options --------- ASCII 0 Keyboard 1 Movement Numpad Keybinds 0 Fullscreen 2 Font 18/X11Bold Map View 76x50 Zoom Use 0% Tactical HUD 1 Map Filters NONE Filters NONE Steam 1 RUN: c7b78c8a-cd34-41ce-a370-98ef9fe71acb